[Event "Titled Tuesday Blitz November 2 2021"]
[White "Timofeev, Artyom"]
[Black "Wagner, Dennis"]
[WhiteFideId "4140419"]
[BlackFideId "24650684"]
[WhiteElo "2591"]
[BlackElo "2355"]
[Result "1-0"]
[Round "09"]
[TimeControl "180+1"]
[Date "2021.11.02"]
[WhiteClock "0:00:19"]
[BlackClock "0:00:02"]

1. c4 {[%clk 0:03:00]}  c5 {[%clk 0:02:55]} 2. Nf3 {[%clk 0:02:59]}  Nf6 {[%clk 0:02:54]} 3. Nc3 {[%clk 0:02:59]}  e6 {[%clk 0:02:54]} 4. e4 {[%clk 0:02:58]}  Nc6 {[%clk 0:02:53]} 5. Be2 {[%clk 0:02:58]}  d5 {[%clk 0:02:52]} 6. cxd5 {[%clk 0:02:50]}  exd5 {[%clk 0:02:53]} 7. e5 {[%clk 0:02:51]}  Ne4 {[%clk 0:02:50]} 8. O-O {[%clk 0:02:46]}  Be7 {[%clk 0:02:48]} 9. Bd3 {[%clk 0:02:37]}  Bf5 {[%clk 0:02:34]} 10. Qe2 {[%clk 0:02:26]}  Nxc3 {[%clk 0:02:20]} 11. dxc3 {[%clk 0:02:26]}  Bxd3 {[%clk 0:02:20]} 12. Qxd3 {[%clk 0:02:26]}  Qd7 {[%clk 0:02:13]} 13. Bf4 {[%clk 0:02:22]}  O-O-O {[%clk 0:02:04]} 14. b4 {[%clk 0:02:14]}  cxb4 {[%clk 0:01:52]} 15. cxb4 {[%clk 0:02:14]}  Bxb4 {[%clk 0:01:45]} 16. Rfc1 {[%clk 0:02:12]}  d4 {[%clk 0:01:33]} 17. Rab1 {[%clk 0:02:02]}  Bc3 {[%clk 0:01:30]} 18. Ng5 {[%clk 0:02:01]}  Qd5 {[%clk 0:01:14]} 19. Rb5 {[%clk 0:01:37]}  Qxa2 {[%clk 0:01:03]} 20. Qf5+ {[%clk 0:01:27]}  Rd7 {[%clk 0:00:32]} 21. Rxb7 {[%clk 0:01:26]}  Rd8 {[%clk 0:00:15]} 22. Rbb1 {[%clk 0:01:01]}  Ne7 {[%clk 0:00:10]} 23. Qxh7 {[%clk 0:00:52]}  Nd5 {[%clk 0:00:10]} 24. Bg3 {[%clk 0:00:51]}  g6 {[%clk 0:00:08]} 25. Qh3 {[%clk 0:00:49]}  Rf8 {[%clk 0:00:01]} 26. Nxf7 {[%clk 0:00:41]}  Rxf7 {[%clk 0:00:01]} 27. e6 {[%clk 0:00:41]}  Kd8 {[%clk 0:00:01]} 28. exf7 {[%clk 0:00:39]}  Rxf7 {[%clk 0:00:02]} 29. Qh8+ {[%clk 0:00:39]}  Ke7 {[%clk 0:00:02]} 30. Bh4+ {[%clk 0:00:36]}  Kd6 {[%clk 0:00:02]} 31. Qd8+ {[%clk 0:00:32]}  Kc5 {[%clk 0:00:02]} 32. Qe8 {[%clk 0:00:23]}  Rf5 {[%clk 0:00:01]} 33. Qxg6 {[%clk 0:00:21]}  Rf7 {[%clk 0:00:01]} 34. Qxf7 {[%clk 0:00:20]}  Nf4 {[%clk 0:00:02]} 35. Qxa2 {[%clk 0:00:19]}  Ne2+ {[%clk 0:00:02]} 36. Qxe2 {[%clk 0:00:19]} 1-0


[Site "https://www.chess.com"]

[Event "Titled Tuesday Blitz November 2 2021"]
[White "Vlassov, Nikolai"]
[Black "Viani Antonio Dcunha"]
[WhiteFideId "4103360"]
[BlackFideId "5027330"]
[WhiteElo "2407"]
[BlackElo "2366"]
[Result "1-0"]
[Round "09"]
[TimeControl "180+1"]
[Date "2021.11.02"]
[WhiteClock "0:00:19"]
[BlackClock "0:00:04"]

1. e4 {[%clk 0:03:00]}  e5 {[%clk 0:02:59]} 2. Bc4 {[%clk 0:03:00]}  Nf6 {[%clk 0:02:57]} 3. d3 {[%clk 0:02:59]}  Nc6 {[%clk 0:02:57]} 4. Nf3 {[%clk 0:02:59]}  Bc5 {[%clk 0:02:55]} 5. Bg5 {[%clk 0:02:58]}  h6 {[%clk 0:02:51]} 6. Bh4 {[%clk 0:02:59]}  d6 {[%clk 0:02:48]} 7. Nc3 {[%clk 0:02:58]}  Be6 {[%clk 0:02:45]} 8. Nd2 {[%clk 0:02:54]}  g5 {[%clk 0:02:40]} 9. Bg3 {[%clk 0:02:53]}  h5 {[%clk 0:02:09]} 10. h4 {[%clk 0:02:53]}  g4 {[%clk 0:02:09]} 11. Nd5 {[%clk 0:02:41]}  Bxd5 {[%clk 0:02:03]} 12. exd5 {[%clk 0:02:41]}  Ne7 {[%clk 0:02:01]} 13. Ne4 {[%clk 0:02:41]}  Nxe4 {[%clk 0:01:54]} 14. dxe4 {[%clk 0:02:41]}  f5 {[%clk 0:01:49]} 15. exf5 {[%clk 0:02:41]}  Nxf5 {[%clk 0:01:50]} 16. Qd3 {[%clk 0:02:33]}  Qf6 {[%clk 0:01:49]} 17. Bb5+ {[%clk 0:02:31]}  Ke7 {[%clk 0:01:46]} 18. O-O-O {[%clk 0:02:30]}  Rhf8 {[%clk 0:01:32]} 19. Ba4 {[%clk 0:02:21]}  a5 {[%clk 0:01:26]} 20. Qb5 {[%clk 0:02:15]}  Rfd8 {[%clk 0:01:20]} 21. Qxb7 {[%clk 0:02:13]}  Ra7 {[%clk 0:01:18]} 22. Qb5 {[%clk 0:02:07]}  Nd4 {[%clk 0:01:07]} 23. Qd3 {[%clk 0:02:01]}  Rb7 {[%clk 0:01:02]} 24. c3 {[%clk 0:01:57]}  Nf5 {[%clk 0:01:01]} 25. Bc2 {[%clk 0:01:55]}  Nxg3 {[%clk 0:00:57]} 26. fxg3 {[%clk 0:01:55]}  Rdb8 {[%clk 0:00:56]} 27. b3 {[%clk 0:01:42]}  a4 {[%clk 0:00:51]} 28. b4 {[%clk 0:01:18]}  Qh6+ {[%clk 0:00:47]} 29. Kb1 {[%clk 0:01:13]}  Rxb4+ {[%clk 0:00:44]} 30. cxb4 {[%clk 0:01:11]}  Rxb4+ {[%clk 0:00:45]} 31. Bb3 {[%clk 0:01:07]}  axb3 {[%clk 0:00:45]} 32. axb3 {[%clk 0:01:07]}  e4 {[%clk 0:00:42]} 33. Rde1 {[%clk 0:01:00]}  Qg6 {[%clk 0:00:34]} 34. Rhf1 {[%clk 0:00:57]}  Rd4 {[%clk 0:00:27]} 35. Qc2 {[%clk 0:00:54]}  Kd7 {[%clk 0:00:22]} 36. Rf4 {[%clk 0:00:50]}  Qg7 {[%clk 0:00:15]} 37. Rfxe4 {[%clk 0:00:47]}  Rxe4 {[%clk 0:00:14]} 38. Qxe4 {[%clk 0:00:47]}  Kc8 {[%clk 0:00:13]} 39. Qe8+ {[%clk 0:00:44]}  Kb7 {[%clk 0:00:13]} 40. Qc6+ {[%clk 0:00:44]}  Ka7 {[%clk 0:00:13]} 41. Qa4+ {[%clk 0:00:36]}  Kb7 {[%clk 0:00:13]} 42. Re8 {[%clk 0:00:34]}  Qg6+ {[%clk 0:00:12]} 43. Qe4 {[%clk 0:00:34]}  Qf6 {[%clk 0:00:10]} 44. Qd3 {[%clk 0:00:27]}  c6 {[%clk 0:00:06]} 45. Qh7+ {[%clk 0:00:21]}  Kb6 {[%clk 0:00:03]} 46. Rb8+ {[%clk 0:00:21]}  Ka5 {[%clk 0:00:03]} 47. Qc7+ {[%clk 0:00:19]}  Ka6 {[%clk 0:00:04]} 48. Qb7+ {[%clk 0:00:19]} 1-0


[Site "https://www.chess.com"]

[Event "Titled Tuesday Blitz November 2 2021"]
[White "Weetik, Vjacheslav"]
[Black "Goltsev, Dmitry"]
[WhiteFideId "4153472"]
[BlackFideId "24176710"]
[WhiteElo "2469"]
[BlackElo "2334"]
[Result "1-0"]
[Round "09"]
[TimeControl "180+1"]
[Date "2021.11.02"]
[WhiteClock "0:00:04"]
[BlackClock "0:00:02"]

1. e4 {[%clk 0:02:59]}  e6 {[%clk 0:02:59]} 2. d3 {[%clk 0:02:46]}  d5 {[%clk 0:03:00]} 3. Qe2 {[%clk 0:02:46]}  dxe4 {[%clk 0:02:59]} 4. dxe4 {[%clk 0:02:46]}  Nc6 {[%clk 0:03:00]} 5. Nf3 {[%clk 0:02:46]}  Nf6 {[%clk 0:03:00]} 6. c3 {[%clk 0:02:45]}  Bc5 {[%clk 0:03:00]} 7. Bg5 {[%clk 0:02:28]}  h6 {[%clk 0:02:57]} 8. Bh4 {[%clk 0:02:27]}  g5 {[%clk 0:02:56]} 9. Bg3 {[%clk 0:02:27]}  Nh5 {[%clk 0:02:56]} 10. Qc2 {[%clk 0:02:13]}  g4 {[%clk 0:02:50]} 11. Ne5 {[%clk 0:01:38]}  Nxg3 {[%clk 0:02:28]} 12. Nxc6 {[%clk 0:01:37]}  Qd6 {[%clk 0:02:12]} 13. hxg3 {[%clk 0:01:35]}  Qxc6 {[%clk 0:02:10]} 14. Nd2 {[%clk 0:01:33]}  Bd7 {[%clk 0:02:08]} 15. Nb3 {[%clk 0:01:25]}  Bb6 {[%clk 0:02:06]} 16. O-O-O {[%clk 0:01:23]}  O-O-O {[%clk 0:02:04]} 17. Nd4 {[%clk 0:01:14]}  Qc5 {[%clk 0:02:04]} 18. Rd2 {[%clk 0:00:44]}  e5 {[%clk 0:02:00]} 19. Nb3 {[%clk 0:00:43]}  Qe7 {[%clk 0:01:57]} 20. Bc4 {[%clk 0:00:42]}  Qg5 {[%clk 0:01:53]} 21. Kb1 {[%clk 0:00:42]}  f5 {[%clk 0:01:50]} 22. Rxd7 {[%clk 0:00:28]}  Kxd7 {[%clk 0:01:51]} 23. exf5 {[%clk 0:00:28]}  Kc8 {[%clk 0:01:50]} 24. a4 {[%clk 0:00:27]}  c6 {[%clk 0:01:41]} 25. a5 {[%clk 0:00:26]}  Bc7 {[%clk 0:01:41]} 26. a6 {[%clk 0:00:24]}  b6 {[%clk 0:01:40]} 27. Bd3 {[%clk 0:00:22]}  c5 {[%clk 0:01:33]} 28. Qe2 {[%clk 0:00:19]}  Qg8 {[%clk 0:01:22]} 29. Bc4 {[%clk 0:00:15]}  Qf8 {[%clk 0:01:18]} 30. Qe4 {[%clk 0:00:15]}  Rd6 {[%clk 0:01:18]} 31. Be6+ {[%clk 0:00:12]}  Kd8 {[%clk 0:01:15]} 32. Qb7 {[%clk 0:00:12]}  Rxe6 {[%clk 0:00:59]} 33. fxe6 {[%clk 0:00:12]}  Qd6 {[%clk 0:00:59]} 34. Kc2 {[%clk 0:00:11]}  c4 {[%clk 0:00:52]} 35. Rd1 {[%clk 0:00:08]}  cxb3+ {[%clk 0:00:52]} 36. Kc1 {[%clk 0:00:09]}  Ke7 {[%clk 0:00:43]} 37. Rxd6 {[%clk 0:00:08]}  Kxd6 {[%clk 0:00:44]} 38. Qe4 {[%clk 0:00:06]}  Re8 {[%clk 0:00:40]} 39. Qc4 {[%clk 0:00:05]}  Rxe6 {[%clk 0:00:38]} 40. Qxb3 {[%clk 0:00:05]}  e4 {[%clk 0:00:34]} 41. Qc4 {[%clk 0:00:04]}  Re5 {[%clk 0:00:21]} 42. b4 {[%clk 0:00:04]}  b5 {[%clk 0:00:16]} 43. Qd4+ {[%clk 0:00:03]}  Rd5 {[%clk 0:00:17]} 44. Qxa7 {[%clk 0:00:04]}  Rf5 {[%clk 0:00:15]} 45. Kd2 {[%clk 0:00:02]}  Rd5+ {[%clk 0:00:11]} 46. Ke2 {[%clk 0:00:02]}  Rd3 {[%clk 0:00:10]} 47. Qb7 {[%clk 0:00:02]}  Rxc3 {[%clk 0:00:08]} 48. a7 {[%clk 0:00:03]}  Rc2+ {[%clk 0:00:08]} 49. Kd1 {[%clk 0:00:03]}  e3 {[%clk 0:00:04]} 50. a8=Q {[%clk 0:00:03]}  e2+ {[%clk 0:00:02]} 51. Kxc2 {[%clk 0:00:03]}  e1=Q {[%clk 0:00:02]} 52. Qd5+ {[%clk 0:00:03]}  Ke7 {[%clk 0:00:02]} 53. Qe4+ {[%clk 0:00:04]} 1-0


[Site "https://www.chess.com"]

[Event "Titled Tuesday Blitz November 2 2021"]
[White "Yaksin, Oleg"]
[Black "Svane, Frederik"]
[WhiteFideId "24105880"]
[BlackFideId "12923044"]
[WhiteElo "2256"]
[BlackElo "2459"]
[Result "0-1"]
[Round "09"]
[TimeControl "180+1"]
[Date "2021.11.02"]
[WhiteClock "0:00:01"]
[BlackClock "0:00:05"]

1. d4 {[%clk 0:02:59]}  Nf6 {[%clk 0:03:00]} 2. c4 {[%clk 0:03:00]}  e6 {[%clk 0:03:00]} 3. g3 {[%clk 0:03:00]}  d5 {[%clk 0:03:00]} 4. Nf3 {[%clk 0:03:00]}  Bb4+ {[%clk 0:03:00]} 5. Bd2 {[%clk 0:02:59]}  Be7 {[%clk 0:03:01]} 6. Bg2 {[%clk 0:02:58]}  O-O {[%clk 0:03:01]} 7. O-O {[%clk 0:02:58]}  c6 {[%clk 0:03:01]} 8. Qc2 {[%clk 0:02:57]}  b6 {[%clk 0:03:02]} 9. Bf4 {[%clk 0:02:57]}  Bb7 {[%clk 0:02:59]} 10. Rd1 {[%clk 0:02:57]}  Nbd7 {[%clk 0:02:57]} 11. Ne5 {[%clk 0:02:55]}  Nh5 {[%clk 0:02:55]} 12. Be3 {[%clk 0:02:52]}  Nhf6 {[%clk 0:02:51]} 13. Nc3 {[%clk 0:02:32]}  Nxe5 {[%clk 0:02:49]} 14. dxe5 {[%clk 0:02:32]}  Nd7 {[%clk 0:02:49]} 15. cxd5 {[%clk 0:02:26]}  cxd5 {[%clk 0:02:49]} 16. f4 {[%clk 0:02:26]}  Bc5 {[%clk 0:02:39]} 17. Bxc5 {[%clk 0:02:23]}  bxc5 {[%clk 0:02:40]} 18. e3 {[%clk 0:02:17]}  Qb6 {[%clk 0:02:36]} 19. b3 {[%clk 0:02:08]}  Rfd8 {[%clk 0:02:31]} 20. Na4 {[%clk 0:02:07]}  Qa5 {[%clk 0:02:30]} 21. Rac1 {[%clk 0:02:07]}  Rac8 {[%clk 0:02:31]} 22. Qd2 {[%clk 0:02:07]}  Qc7 {[%clk 0:02:19]} 23. Rc2 {[%clk 0:01:56]}  c4 {[%clk 0:02:08]} 24. Qd4 {[%clk 0:01:48]}  Bc6 {[%clk 0:02:06]} 25. Nc3 {[%clk 0:01:41]}  Nb6 {[%clk 0:02:01]} 26. Rdc1 {[%clk 0:01:39]}  Be8 {[%clk 0:01:57]} 27. Ne2 {[%clk 0:01:38]}  Qe7 {[%clk 0:01:55]} 28. Qd2 {[%clk 0:01:33]}  Qa3 {[%clk 0:01:41]} 29. Nd4 {[%clk 0:01:32]}  a5 {[%clk 0:01:41]} 30. Bf1 {[%clk 0:01:31]}  cxb3 {[%clk 0:00:59]} 31. Rxc8 {[%clk 0:01:30]}  Rxc8 {[%clk 0:00:54]} 32. Rxc8 {[%clk 0:01:30]}  Nxc8 {[%clk 0:00:55]} 33. axb3 {[%clk 0:01:29]}  Qc5 {[%clk 0:00:54]} 34. Bd3 {[%clk 0:01:01]}  Nb6 {[%clk 0:00:53]} 35. Kf2 {[%clk 0:00:51]}  h6 {[%clk 0:00:52]} 36. h4 {[%clk 0:00:49]}  Bc6 {[%clk 0:00:47]} 37. h5 {[%clk 0:00:49]}  Bd7 {[%clk 0:00:40]} 38. g4 {[%clk 0:00:48]}  Na8 {[%clk 0:00:38]} 39. Bc2 {[%clk 0:00:30]}  Nc7 {[%clk 0:00:26]} 40. Qd3 {[%clk 0:00:20]}  Kf8 {[%clk 0:00:25]} 41. Qh7 {[%clk 0:00:17]}  Nb5 {[%clk 0:00:22]} 42. Qh8+ {[%clk 0:00:11]}  Ke7 {[%clk 0:00:22]} 43. Qxg7 {[%clk 0:00:08]}  Kd8 {[%clk 0:00:13]} 44. Qf6+ {[%clk 0:00:03]}  Kc8 {[%clk 0:00:09]} 45. Qh8+ {[%clk 0:00:03]}  Kc7 {[%clk 0:00:06]} 46. Nxb5+ {[%clk 0:00:02]}  Bxb5 {[%clk 0:00:07]} 47. Qh7 {[%clk 0:00:02]}  Kb6 {[%clk 0:00:05]} 48. Kf3 {[%clk 0:00:01]}  Qc3 {[%clk 0:00:05]} 0-1


[Site "https://www.chess.com"]

[Event "Titled Tuesday Blitz November 2 2021"]
[White "Zubov, Alexander"]
[Black "Smirnov, Pavel"]
[WhiteFideId "14109409"]
[BlackFideId "4123425"]
[WhiteElo "2685"]
[BlackElo "2571"]
[Result "1-0"]
[Round "09"]
[TimeControl "180+1"]
[Date "2021.11.02"]
[WhiteClock "0:00:36"]
[BlackClock "0:00:35"]

1. d4 {[%clk 0:03:00]}  Nf6 {[%clk 0:02:59]} 2. c4 {[%clk 0:03:00]}  e6 {[%clk 0:03:00]} 3. Nf3 {[%clk 0:03:00]}  d5 {[%clk 0:02:59]} 4. Nc3 {[%clk 0:02:59]}  c6 {[%clk 0:02:59]} 5. Bg5 {[%clk 0:02:58]}  h6 {[%clk 0:02:59]} 6. Bh4 {[%clk 0:02:57]}  dxc4 {[%clk 0:02:59]} 7. e4 {[%clk 0:02:56]}  g5 {[%clk 0:02:59]} 8. Bg3 {[%clk 0:02:56]}  b5 {[%clk 0:03:00]} 9. e5 {[%clk 0:02:57]}  Nd5 {[%clk 0:02:58]} 10. h4 {[%clk 0:02:56]}  g4 {[%clk 0:02:54]} 11. Nd2 {[%clk 0:02:55]}  h5 {[%clk 0:02:50]} 12. a4 {[%clk 0:02:51]}  a6 {[%clk 0:02:35]} 13. Nde4 {[%clk 0:02:30]}  Nd7 {[%clk 0:02:27]} 14. Be2 {[%clk 0:02:00]}  Bb7 {[%clk 0:02:22]} 15. O-O {[%clk 0:01:58]}  Qb6 {[%clk 0:02:01]} 16. axb5 {[%clk 0:01:38]}  axb5 {[%clk 0:01:53]} 17. Rxa8+ {[%clk 0:01:37]}  Bxa8 {[%clk 0:01:53]} 18. b3 {[%clk 0:00:57]}  cxb3 {[%clk 0:01:02]} 19. Nxd5 {[%clk 0:00:56]}  cxd5 {[%clk 0:00:59]} 20. Nd6+ {[%clk 0:00:55]}  Bxd6 {[%clk 0:00:55]} 21. exd6 {[%clk 0:00:56]}  b4 {[%clk 0:00:38]} 22. Qd2 {[%clk 0:00:46]}  Bc6 {[%clk 0:00:35]} 23. Rb1 {[%clk 0:00:36]} 1-0


[Site "https://www.chess.com"]

[Event "Titled Tuesday Blitz November 2 2021"]
[White "Alavkin, Arseny"]
[Black "Gaehwiler, Gabriel"]
[WhiteFideId "4120612"]
[BlackFideId "1314530"]
[WhiteElo "2391"]
[BlackElo "2320"]
[Result "0-1"]
[Round "10"]
[TimeControl "180+1"]
[Date "2021.11.02"]
[WhiteClock "0:00:48"]
[BlackClock "0:00:24"]

1. c4 {[%clk 0:03:00]}  Nf6 {[%clk 0:02:59]} 2. Nc3 {[%clk 0:03:01]}  g6 {[%clk 0:02:59]} 3. d4 {[%clk 0:03:01]}  Bg7 {[%clk 0:02:59]} 4. Nf3 {[%clk 0:03:01]}  O-O {[%clk 0:02:59]} 5. g3 {[%clk 0:03:01]}  b6 {[%clk 0:02:55]} 6. Bg2 {[%clk 0:03:01]}  Bb7 {[%clk 0:02:55]} 7. O-O {[%clk 0:03:02]}  Ne4 {[%clk 0:02:56]} 8. Qc2 {[%clk 0:02:59]}  Nxc3 {[%clk 0:02:55]} 9. bxc3 {[%clk 0:03:00]}  Nc6 {[%clk 0:02:51]} 10. e4 {[%clk 0:02:58]}  Na5 {[%clk 0:02:51]} 11. Nd2 {[%clk 0:02:58]}  Rc8 {[%clk 0:02:41]} 12. Re1 {[%clk 0:02:57]}  Ba6 {[%clk 0:02:38]} 13. Bf1 {[%clk 0:02:57]}  d6 {[%clk 0:02:35]} 14. f4 {[%clk 0:02:56]}  Qd7 {[%clk 0:02:31]} 15. Rb1 {[%clk 0:02:52]}  Qc6 {[%clk 0:02:29]} 16. Qd3 {[%clk 0:02:49]}  Rfd8 {[%clk 0:02:16]} 17. Ba3 {[%clk 0:02:44]}  Qa4 {[%clk 0:02:14]} 18. Bb4 {[%clk 0:02:44]}  Nb7 {[%clk 0:02:03]} 19. Be2 {[%clk 0:02:22]}  c5 {[%clk 0:01:59]} 20. Bd1 {[%clk 0:02:22]}  Qe8 {[%clk 0:01:46]} 21. Ba3 {[%clk 0:02:22]}  cxd4 {[%clk 0:01:42]} 22. cxd4 {[%clk 0:02:23]}  Na5 {[%clk 0:01:39]} 23. Bb3 {[%clk 0:02:23]}  Qc6 {[%clk 0:01:36]} 24. Rbc1 {[%clk 0:02:20]}  b5 {[%clk 0:01:25]} 25. c5 {[%clk 0:02:00]}  b4 {[%clk 0:01:22]} 26. Qe3 {[%clk 0:01:53]}  bxa3 {[%clk 0:01:21]} 27. d5 {[%clk 0:01:53]}  Qb5 {[%clk 0:01:13]} 28. c6 {[%clk 0:01:53]}  Qb6 {[%clk 0:01:11]} 29. Qxb6 {[%clk 0:01:50]}  axb6 {[%clk 0:01:12]} 30. Kg2 {[%clk 0:01:44]}  Bd4 {[%clk 0:01:10]} 31. Kf3 {[%clk 0:01:43]}  Bc5 {[%clk 0:01:10]} 32. Ba4 {[%clk 0:01:40]}  b5 {[%clk 0:01:10]} 33. Bd1 {[%clk 0:01:40]}  Nc4 {[%clk 0:01:02]} 34. Nb3 {[%clk 0:01:38]}  Bb6 {[%clk 0:01:01]} 35. Be2 {[%clk 0:01:37]}  e6 {[%clk 0:01:01]} 36. Red1 {[%clk 0:01:34]}  exd5 {[%clk 0:01:00]} 37. exd5 {[%clk 0:01:35]}  Re8 {[%clk 0:01:00]} 38. Bxc4 {[%clk 0:01:34]}  Re3+ {[%clk 0:00:49]} 39. Kg4 {[%clk 0:01:34]}  bxc4 {[%clk 0:00:49]} 40. Nd4 {[%clk 0:01:35]}  Re4 {[%clk 0:00:36]} 41. Nf3 {[%clk 0:01:33]}  Bc5 {[%clk 0:00:35]} 42. Ng5 {[%clk 0:01:31]}  Re2 {[%clk 0:00:35]} 43. Rb1 {[%clk 0:01:28]}  Rxa2 {[%clk 0:00:33]} 44. Ne4 {[%clk 0:01:28]}  Rb2 {[%clk 0:00:29]} 45. Ra1 {[%clk 0:00:48]}  f5+ {[%clk 0:00:29]} 46. Kg5 {[%clk 0:00:46]}  fxe4 {[%clk 0:00:29]} 47. f5 {[%clk 0:00:47]}  gxf5 {[%clk 0:00:28]} 48. Rf1 {[%clk 0:00:48]}  e3 {[%clk 0:00:25]} 49. Rxf5 {[%clk 0:00:48]}  e2 {[%clk 0:00:25]} 50. Kf6 {[%clk 0:00:48]}  Rf8+ {[%clk 0:00:24]} 0-1


[Site "https://www.chess.com"]

[Event "Titled Tuesday Blitz November 2 2021"]
[White "Babazada, Khazar"]
[Black "Timofeev, Artyom"]
[WhiteFideId "13413554"]
[BlackFideId "4140419"]
[WhiteElo "2302"]
[BlackElo "2591"]
[Result "1-0"]
[Round "10"]
[TimeControl "180+1"]
[Date "2021.11.02"]
[WhiteClock "0:00:39"]
[BlackClock "0:00:12"]

1. e4 {[%clk 0:02:52]}  d6 {[%clk 0:02:59]} 2. d4 {[%clk 0:02:51]}  Nf6 {[%clk 0:02:59]} 3. Nc3 {[%clk 0:02:50]}  g6 {[%clk 0:02:59]} 4. Nf3 {[%clk 0:02:50]}  Bg7 {[%clk 0:02:59]} 5. h3 {[%clk 0:02:50]}  c6 {[%clk 0:02:57]} 6. Be2 {[%clk 0:02:51]}  O-O {[%clk 0:02:56]} 7. O-O {[%clk 0:02:48]}  Qc7 {[%clk 0:02:55]} 8. Be3 {[%clk 0:02:47]}  Nbd7 {[%clk 0:02:55]} 9. a4 {[%clk 0:02:46]}  a5 {[%clk 0:02:55]} 10. Qb1 {[%clk 0:02:46]}  Re8 {[%clk 0:02:40]} 11. Qa2 {[%clk 0:02:46]}  e6 {[%clk 0:02:33]} 12. Rfd1 {[%clk 0:02:45]}  h6 {[%clk 0:02:29]} 13. Rd2 {[%clk 0:02:41]}  d5 {[%clk 0:02:26]} 14. e5 {[%clk 0:02:39]}  Nh7 {[%clk 0:02:26]} 15. Rf1 {[%clk 0:02:34]}  f6 {[%clk 0:02:20]} 16. Bd3 {[%clk 0:02:29]}  Nhf8 {[%clk 0:02:19]} 17. exf6 {[%clk 0:02:29]}  Nxf6 {[%clk 0:02:04]} 18. Ne2 {[%clk 0:02:30]}  g5 {[%clk 0:01:36]} 19. Ng3 {[%clk 0:02:23]}  N8d7 {[%clk 0:01:31]} 20. Qb1 {[%clk 0:02:21]}  e5 {[%clk 0:01:28]} 21. Bg6 {[%clk 0:02:12]}  Rf8 {[%clk 0:01:15]} 22. dxe5 {[%clk 0:02:05]}  Nxe5 {[%clk 0:01:15]} 23. Nxe5 {[%clk 0:02:02]}  Qxe5 {[%clk 0:01:15]} 24. Re1 {[%clk 0:02:03]}  Qd6 {[%clk 0:01:01]} 25. Rde2 {[%clk 0:01:56]}  Bd7 {[%clk 0:01:00]} 26. c3 {[%clk 0:01:51]}  c5 {[%clk 0:00:54]} 27. b4 {[%clk 0:01:47]}  axb4 {[%clk 0:00:53]} 28. cxb4 {[%clk 0:01:47]}  b6 {[%clk 0:00:54]} 29. a5 {[%clk 0:01:43]}  d4 {[%clk 0:00:53]} 30. Bd2 {[%clk 0:01:39]}  bxa5 {[%clk 0:00:52]} 31. bxc5 {[%clk 0:01:34]}  Qxc5 {[%clk 0:00:53]} 32. Re7 {[%clk 0:01:35]}  Kh8 {[%clk 0:00:51]} 33. Qa2 {[%clk 0:01:13]}  Ra7 {[%clk 0:00:40]} 34. Bc1 {[%clk 0:01:13]}  Qd5 {[%clk 0:00:39]} 35. Qa3 {[%clk 0:01:10]}  Raa8 {[%clk 0:00:35]} 36. Bh5 {[%clk 0:01:07]}  Nxh5 {[%clk 0:00:29]} 37. Nxh5 {[%clk 0:01:06]}  Bc6 {[%clk 0:00:28]} 38. f3 {[%clk 0:01:02]}  Rg8 {[%clk 0:00:25]} 39. Qd3 {[%clk 0:00:53]}  Bb5 {[%clk 0:00:15]} 40. Qg6 {[%clk 0:00:43]}  Ra6 {[%clk 0:00:15]} 41. R1e6 {[%clk 0:00:40]}  Rxe6 {[%clk 0:00:15]} 42. Rxe6 {[%clk 0:00:40]}  Qc4 {[%clk 0:00:13]} 43. Qxh6+ {[%clk 0:00:38]}  Bxh6 {[%clk 0:00:12]} 44. Rxh6# {[%clk 0:00:39]} 1-0


[Site "https://www.chess.com"]

[Event "Titled Tuesday Blitz November 2 2021"]
[White "Bilan, Danila"]
[Black "Gelman, Alexander"]
[WhiteFideId "24161918"]
[BlackFideId "4118316"]
[WhiteElo "2164"]
[BlackElo "2375"]
[Result "0-1"]
[Round "10"]
[TimeControl "180+1"]
[Date "2021.11.02"]
[WhiteClock "0:00:03"]
[BlackClock "0:00:10"]

1. d4 {[%clk 0:03:00]}  Nf6 {[%clk 0:02:59]} 2. Nf3 {[%clk 0:03:01]}  c5 {[%clk 0:03:00]} 3. e3 {[%clk 0:03:00]}  d6 {[%clk 0:03:00]} 4. c4 {[%clk 0:02:59]}  Nbd7 {[%clk 0:02:59]} 5. Nc3 {[%clk 0:03:00]}  a6 {[%clk 0:02:59]} 6. Be2 {[%clk 0:03:00]}  e6 {[%clk 0:02:59]} 7. O-O {[%clk 0:03:00]}  b6 {[%clk 0:02:59]} 8. b3 {[%clk 0:03:00]}  Bb7 {[%clk 0:02:59]} 9. Bb2 {[%clk 0:03:01]}  Qc7 {[%clk 0:02:59]} 10. Qd2 {[%clk 0:03:00]}  Be7 {[%clk 0:02:59]} 11. Rad1 {[%clk 0:03:00]}  Rg8 {[%clk 0:02:59]} 12. Rfe1 {[%clk 0:03:00]}  g5 {[%clk 0:02:59]} 13. Qc2 {[%clk 0:02:32]}  g4 {[%clk 0:02:56]} 14. Nd2 {[%clk 0:02:32]}  h5 {[%clk 0:02:55]} 15. d5 {[%clk 0:02:27]}  O-O-O {[%clk 0:02:34]} 16. Nde4 {[%clk 0:02:22]}  h4 {[%clk 0:02:21]} 17. g3 {[%clk 0:02:13]}  Nxe4 {[%clk 0:02:10]} 18. Qxe4 {[%clk 0:02:00]}  Ne5 {[%clk 0:02:00]} 19. Na4 {[%clk 0:01:40]}  Rg7 {[%clk 0:01:18]} 20. Rd2 {[%clk 0:01:20]}  f5 {[%clk 0:00:49]} 21. Qg2 {[%clk 0:01:18]}  Bf6 {[%clk 0:00:43]} 22. Red1 {[%clk 0:01:13]}  Kb8 {[%clk 0:00:42]} 23. Bc3 {[%clk 0:00:52]}  Rh7 {[%clk 0:00:38]} 24. e4 {[%clk 0:00:37]}  hxg3 {[%clk 0:00:30]} 25. hxg3 {[%clk 0:00:30]}  fxe4 {[%clk 0:00:22]} 26. Qxe4 {[%clk 0:00:23]}  Rdh8 {[%clk 0:00:22]} 27. Bxe5 {[%clk 0:00:18]}  Bxe5 {[%clk 0:00:21]} 28. Bf1 {[%clk 0:00:18]}  exd5 {[%clk 0:00:18]} 29. cxd5 {[%clk 0:00:11]}  b5 {[%clk 0:00:18]} 30. Nb2 {[%clk 0:00:11]}  Rh5 {[%clk 0:00:13]} 31. Bg2 {[%clk 0:00:10]}  Qg7 {[%clk 0:00:13]} 32. Nd3 {[%clk 0:00:10]}  Bd4 {[%clk 0:00:13]} 33. Nf4 {[%clk 0:00:09]}  Re5 {[%clk 0:00:13]} 34. Qg6 {[%clk 0:00:08]}  Qe7 {[%clk 0:00:12]} 35. Ne6 {[%clk 0:00:07]}  Ka7 {[%clk 0:00:12]} 36. Nxd4 {[%clk 0:00:04]}  cxd4 {[%clk 0:00:12]} 37. Rxd4 {[%clk 0:00:03]}  Re1+ {[%clk 0:00:12]} 38. Rxe1 {[%clk 0:00:04]}  Qxe1+ {[%clk 0:00:13]} 39. Bf1 {[%clk 0:00:04]}  Rh1+ {[%clk 0:00:08]} 40. Kxh1 {[%clk 0:00:04]}  Qxf1+ {[%clk 0:00:08]} 41. Kh2 {[%clk 0:00:05]}  Qxf2+ {[%clk 0:00:09]} 42. Kh1 {[%clk 0:00:05]}  Qxd4 {[%clk 0:00:09]} 43. Qg7 {[%clk 0:00:03]}  Qxd5+ {[%clk 0:00:10]} 0-1


[Site "https://www.chess.com"]